bitfinex/quotes_ETHUSD_20241203
["timestamp","ask_amount","ask_price","bid_price","bid_amount"]
[1733258984267,0.2,3599.0,3598.9,6.36509655]
[1733258984506,0.40804405,3599.0,3598.9,6.36509655]
[1733258984968,0.2,3599.0,3598.9,6.36509655]
[1733258985415,0.35387579,3599.0,3598.9,6.36509655]
[1733258985565,0.2,3599.0,3598.9,6.36509655]
[1733258985766,0.5620099,3599.0,3598.9,6.36509655]
[1733258986207,0.35387579,3599.0,3598.9,6.36509655]
[1733258987439,0.56204281,3599.0,3598.9,6.36509655]
[1733258987942,0.82225323,3599.0,3598.9,6.36509655]
[1733258990335,0.56204121,3599.0,3598.9,6.36509655]
[1733258991940,0.82220312,3599.0,3598.9,6.36509655]
[1733258992472,0.82220312,3599.0,3598.6,2.78247655]
[1733258992473,0.82220007,3599.0,3598.6,2.78247655]
[1733258992770,0.20816542,3598.9,3598.8,2.77863]
[1733258993275,0.62230441,3598.9,3598.8,2.77863]
[1733258993447,0.36214362,3598.9,3598.8,2.77863]
[1733258993781,0.1539782,3598.9,3598.8,2.77863]
[1733258993943,0.1539782,3598.9,3598.8,3.69242666]
[1733258994147,0.1539782,3598.9,3598.8,4.49132666]
[1733258996240,0.2,3599.0,3598.9,2.77862]
[1733258997087,0.35420743,3599.0,3598.9,2.77862]
[1733258997482,0.40810365,3599.0,3598.9,2.77862]
[1733258997788,0.35420743,3599.0,3598.8,3.57754]
[1733258998077,0.35420743,3599.0,3598.9,2.77862]
[1733258998879,0.35420743,3599.0,3598.9,3.41461966]
[1733259000253,0.35420743,3599.0,3598.9,3.44240275]
[1733259000478,0.2,3599.0,3598.9,7.16921966]
[1733259001255,0.46817278,3599.9,3599.3,3.59791]
[1733259001604,1.75935995,3600.3,3599.8,5.56036655]
[1733259001755,1.43109711,3600.2,3599.8,5.56036655]
[1733259001955,0.46791223,3600.1,3599.9,2.77785]
[1733259002163,0.5945,3600.3,3599.9,2.77785]
[1733259002164,0.20796099,3600.0,3599.9,2.77785]
[1733259002362,0.20788634,3600.0,3599.9,2.77785]
[1733259002560,0.20788634,3600.0,3599.8,2.78247655]
[1733259002801,0.33262868,3600.2,3599.1,3.57146]
[1733259003003,0.46776848,3600.1,3599.7,3.57547655]
[1733259003210,0.5945,3600.3,3599.7,5.56041655]
[1733259003378,0.20783922,3600.2,3599.7,5.56041655]
[1733259003577,0.5945,3600.3,3599.8,2.77792]
[1733259003804,0.20784022,3600.2,3599.9,2.77785]
[1733259004006,0.5945,3600.3,3599.9,2.77785]
[1733259004301,0.20776922,3600.2,3599.7,2.78247655]
[1733259004606,0.5945,3600.3,3599.7,2.78247655]
[1733259004764,0.20777648,3600.2,3599.9,2.7778]
[1733259004973,0.5945,3600.3,3599.9,2.7778]
[1733259005274,0.20777693,3600.2,3599.7,2.78247655]
[1733259005477,0.92694341,3600.5,3600.1,2.77767]
[1733259005675,0.20773084,3600.4,3600.3,2.77754]
[1733259005894,1.1445,3600.7,3600.3,2.77754]
[1733259006096,0.20772238,3600.6,3600.1,2.78247655]
[1733259006291,1.1445,3600.7,3600.1,5.56014655]
[1733259006491,0.20764354,3600.6,3600.2,2.77761]
[1733259006708,0.5945,3600.7,3600.3,2.77753]
[1733259007025,0.5945,3600.7,3600.3,2.77747]
[1733259007325,0.92694341,3601.1,3600.5,5.55984655]
[1733259007483,0.46702697,3601.0,3600.5,5.55984655]
[1733259007679,0.20756754,3600.9,3600.5,5.55984655]
[1733259007920,0.5945,3601.1,3600.6,2.77724]
[1733259008220,0.5945,3601.1,3600.5,2.78247655]
[1733259008394,0.20748134,3601.0,3600.5,2.78247655]
[1733259008596,0.20748662,3600.9,3600.5,2.78247655]
[1733259008921,0.25935827,3601.0,3600.5,2.78247655]
[1733259009091,0.20748844,3600.9,3600.5,2.78247655]
[1733259009295,0.5945,3601.1,3600.5,2.78247655]
[1733259009482,0.46672957,3601.0,3600.5,2.78247655]
[1733259009684,0.93162,3601.1,3600.5,2.78247655]
[1733259009935,0.20743907,3601.0,3600.5,2.78247655]
[1733259010085,0.93162,3601.1,3600.5,2.78247655]
[1733259010725,0.5945,3601.1,3600.5,5.55979655]
[1733259011600,0.5945,3601.1,3600.5,2.78247655]
[1733259011796,0.5945,3601.1,3600.7,2.77723]
[1733259012135,0.5945,3601.1,3600.5,5.55983655]
[1733259012422,0.5945,3601.1,3600.6,2.77729]
[1733259012628,0.5945,3601.1,3600.7,2.77719]
[1733259013122,0.5945,3601.1,3600.5,6.1942402]
[1733259013294,0.15549428,3601.0,3600.6,2.77728]
[1733259014244,0.15549428,3601.0,3600.7,2.77721]
[1733259014833,0.15549428,3601.0,3600.9,2.78247655]
[1733259015034,0.5945,3601.4,3600.9,2.78247655]
[1733259015408,0.15549428,3601.3,3600.9,2.78247655]
[1733259015751,2.77639,3601.8,3600.8,2.77715]
[1733259015752,0.5945,3602.3,3602.2,2.77608]
[1733259015909,0.20702848,3602.7,3602.0,2.77621]
[1733259016257,0.5945,3603.2,3602.4,5.55839655]
[1733259016408,0.5945,3603.2,3602.4,2.78247655]
[1733259016607,0.5945,3603.2,3602.8,2.78247655]
[1733259016808,1.05975796,3603.7,3602.8,3.55807655]
[1733259017035,1.05975796,3603.7,3603.3,2.78247655]
[1733259017036,0.5945,3603.7,3603.3,2.78247655]
[1733259018407,1.0004758,3603.7,3602.8,0.7756]
[1733259018719,1.1445,3603.4,3602.3,2.78247655]
[1733259018936,0.55,3603.3,3602.3,2.78247655]
[1733259019142,0.5945,3603.4,3602.5,2.77584]
[1733259019411,0.5945,3603.4,3602.7,2.78247655]
[1733259019805,0.37592936,3603.4,3602.7,2.78247655]
[1733259020315,0.20625994,3603.8,3602.8,0.767]
[1733259020316,0.55,3603.7,3602.8,0.767]
[1733259020518,0.20601407,3604.2,3602.9,2.80325263]
[1733259020716,3.0,3604.1,3603.0,2.78247655]
[1733259020943,0.20601407,3604.0,3603.0,2.78247655]
[1733259021146,0.59806141,3604.0,3603.0,5.55792655]
[1733259022963,0.3759,3604.0,3603.0,5.55792655]
[1733259023470,0.1529113,3603.9,3603.0,5.55792655]
[1733259024023,0.1529113,3603.9,3603.0,2.78247655]
[1733259024221,0.1529113,3603.9,3602.7,0.5585991]
[1733259024222,0.1529113,3603.9,3603.4,2.78247655]
[1733259024445,0.3759,3604.4,3603.4,2.78247655]
[1733259024765,0.3759,3604.4,3603.5,2.77507]
[1733259024934,0.15325671,3604.3,3603.5,2.77507]
[1733259025130,0.15325671,3604.3,3603.4,2.78247655]
[1733259025346,2.92771671,3604.3,3603.4,2.78247655]
[1733259025719,0.15325671,3604.3,3603.4,2.78247655]
[1733259027365,0.15325671,3604.3,3603.2,0.8288]
[1733259027526,2.77463,3604.1,3603.3,0.36112766]
[1733259027861,0.15331508,3604.0,3603.3,0.36112766]
[1733259028864,2.92802508,3604.0,3603.3,0.36112766]
[1733259029062,2.92802508,3604.0,3603.2,0.8288]
[1733259029263,0.15331508,3604.0,3603.2,0.8288]
[1733259029634,2.77455,3604.2,3603.2,0.8288]
[1733259029839,0.15349021,3603.9,3603.2,0.8288]
[1733259030038,2.77455,3604.2,3603.3,0.360418]
[1733259030239,0.15349021,3603.8,3603.3,0.360418]
[1733259030453,0.3759,3604.4,3603.3,0.360418]
[1733259030626,0.15349021,3603.7,3603.2,0.8288]
[1733259030826,2.77467,3604.1,3603.2,0.8288]
[1733259031037,0.15349021,3603.6,3603.2,0.8288]
[1733259031268,2.77467,3604.1,3603.2,0.8288]
[1733259031570,0.70490298,3604.4,3603.2,0.8288]
[1733259031571,2.77456,3604.2,3603.2,0.8288]
[1733259031723,2.98036416,3604.1,3603.3,0.360418]
[1733259031921,2.95707114,3604.1,3603.3,0.360418]
[1733259032187,2.77478,3603.9,3603.2,0.8288]
[1733259032362,0.3759,3603.8,3602.9,3.52583]
[1733259032773,0.18243114,3603.7,3602.9,3.52583]
[1733259032929,0.18243114,3603.7,3602.9,0.7503]
[1733259033569,2.77501,3603.6,3602.7,0.5585991]
[1733259033780,0.58176711,3603.8,3602.7,0.5585991]
[1733259033781,2.95752088,3603.5,3602.7,0.5585991]
[1733259034568,2.77545,3603.1,3602.2,0.7503]
[1733259034782,2.77545,3603.1,3601.4,0.2]
[1733259034783,3.15133,3603.1,3601.7,0.7503]
[1733259034947,2.95785791,3603.0,3601.7,0.7503]
[1733259035141,2.95785791,3603.0,3602.0,5.55869655]
[1733259035576,2.95785791,3603.0,3602.0,2.78247655]
[1733259035577,2.77558,3602.9,3602.0,2.78247655]
[1733259035725,2.77558,3602.9,3601.8,3.12963766]
[1733259035925,0.18200307,3602.8,3601.8,0.35327766]
[1733259036127,0.18200307,3602.8,3602.3,2.77598]
[1733259036468,0.3759,3603.1,3602.1,2.77612]
[1733259036642,0.20623436,3603.0,3602.0,2.78247655]
[1733259036843,0.20623436,3603.0,3602.1,0.02775801]
[1733259036844,0.18178412,3603.0,3602.1,0.02775801]
[1733259037042,0.18178412,3603.0,3602.2,3.373573]
[1733259037241,0.18178412,3603.0,3602.2,3.40133006]
[1733259037571,0.18178412,3603.0,3602.3,2.776]
[1733259037872,0.18178412,3603.0,3602.4,2.77588]
[1733259038082,0.18178412,3603.0,3602.3,0.8154]
[1733259038369,0.20642696,3602.9,3602.3,1.51533471]
[1733259038676,0.18158462,3602.8,3602.4,2.80367711]
[1733259039075,0.32982965,3603.2,3602.5,2.77584]
[1733259039276,0.2065162,3603.1,3602.9,2.77552]
[1733259039571,0.3759,3603.4,3602.9,2.77553]
[1733259039734,0.3759,3603.4,3602.5,2.77585]
[1733259039735,0.20652039,3603.3,3603.1,2.77538]
[1733259039934,0.3759,3604.0,3603.1,2.77538]
[1733259039935,0.25813382,3603.7,3603.2,0.277538]
[1733259040161,0.20650486,3603.6,3603.1,2.77538]
[1733259040360,0.20650486,3603.5,3603.1,2.77538]
[1733259040559,0.20650486,3603.4,3603.3,2.77523]
[1733259040761,0.58887929,3603.8,3603.5,2.77501]
[1733259040968,0.20660744,3603.7,3603.1,2.77531]
[1733259041180,0.20661132,3603.6,3603.2,0.353431]
[1733259041337,0.20661132,3603.5,3602.9,3.53454]
[1733259041543,0.20661132,3603.4,3602.9,3.53454]
[1733259041855,0.20661132,3603.3,3603.0,2.77545]
[1733259042057,0.33082392,3603.7,3603.0,2.77545]
[1733259042270,0.79639338,3603.6,3603.0,2.77545]
[1733259042478,0.79639338,3603.5,3603.0,3.128895]
[1733259042774,0.20691981,3603.4,3603.0,3.128895]
[1733259042930,0.20691854,3603.3,3603.0,3.128895]
[1733259043130,0.20691854,3603.2,3603.0,3.128895]
[1733259043344,0.41384214,3603.5,3603.1,0.3887895]
[1733259043546,0.79737189,3603.4,3603.1,0.3887895]
[1733259043789,0.79737189,3603.3,3603.1,0.3887895]
[1733259043937,0.46599624,3603.2,3603.0,2.77545]
[1733259044143,3.15065,3604.0,3602.9,0.759]
[1733259044144,0.46630157,3603.1,3602.9,0.759]
[1733259044367,0.20710978,3603.0,3602.9,0.759]
[1733259045277,0.46672376,3603.0,3602.9,0.759]
[1733259045480,0.79903114,3603.0,3602.9,3.888]
[1733259045685,0.53941715,3603.0,3602.9,3.888]
[1733259045833,0.79903228,3603.0,3602.9,3.888]
[1733259046043,0.25961357,3603.0,3602.9,3.888]
[1733259046250,0.27692114,3603.8,3603.0,2.77543]
[1733259046451,1.49219908,3603.7,3603.1,2.77537]
[1733259046651,1.21527794,3603.6,3603.1,2.77537]
[1733259046940,1.21527794,3603.5,3602.6,0.75]
[1733259047146,2.77531,3603.2,3602.4,2.78247655]
[1733259047385,1.21527794,3603.1,3602.3,0.75]
[1733259047619,1.21527794,3603.0,3602.3,0.75]
[1733259047887,1.21527794,3602.9,3602.3,0.75]
[1733259048068,1.21527794,3602.8,3602.3,1.38085666]
[1733259048243,0.7997983,3602.7,3602.3,1.38085666]
[1733259048440,0.7997983,3602.6,3602.3,1.38085666]
[1733259048678,0.20773982,3602.5,3602.3,1.38085666]
[1733259048850,0.20773982,3602.4,3602.3,1.38085666]
[1733259049180,0.20773982,3602.4,3602.3,0.63085666]
[1733259049684,0.20778064,3602.4,3602.3,0.63085666]
[1733259050088,0.64980338,3602.4,3602.3,0.63085666]
[1733259050443,0.64980338,3602.4,3602.3,3.40685666]
[1733259050444,0.39007559,3602.4,3602.3,3.40685666]
[1733259050686,0.20778064,3602.4,3602.3,3.40685666]
[1733259050999,0.41550014,3603.1,3602.6,0.828]
[1733259051198,0.79978437,3603.0,3602.7,2.78247655]
[1733259051366,0.20773769,3602.9,3602.8,3.41422865]
[1733259052083,0.46740842,3602.9,3602.8,3.41422865]
[1733259052290,0.20773769,3602.9,3602.8,3.41422865]
[1733259052458,0.41546832,3603.4,3602.8,0.63861865]
[1733259052663,0.79975144,3603.3,3603.2,2.77531]
[1733259052871,0.38977887,3603.3,3603.2,3.54261]
[1733259053207,0.46736506,3603.3,3603.2,3.54261]
[1733259053358,0.20772719,3603.3,3603.2,3.54261]
[1733259054169,0.46735044,3603.3,3603.2,3.54261]
[1733259054381,0.20772719,3603.3,3603.2,4.17511865]
[1733259055877,0.20772719,3603.3,3603.2,3.40781865]
[1733259056101,0.20772719,3603.3,3603.1,2.78247655]
[1733259056299,0.20772719,3603.2,3603.1,2.78247655]
[1733259056501,0.20772719,3603.2,3603.1,5.55785655]
[1733259056801,0.41546914,3603.8,3603.4,2.77514]
[1733259057012,0.79973035,3603.7,3603.4,2.77514]
[1733259057178,0.79973035,3603.6,3603.4,2.77514]
[1733259057363,0.46737813,3603.5,3603.4,2.77514]
[1733259057559,0.46737813,3603.5,3603.1,2.78247655]
[1733259057803,0.39032497,3603.4,3603.2,3.13144766]
[1733259057975,0.20772361,3603.3,3603.2,3.13144766]
[1733259058363,0.33236206,3603.7,3603.2,3.13144766]
[1733259058586,0.64996812,3603.6,3603.2,3.13144766]
[1733259058808,0.20772721,3603.5,3603.3,0.59139242]
[1733259059007,0.20772721,3603.4,3603.3,0.59139242]
[1733259059208,0.74779458,3603.9,3603.3,3.36662242]
[1733259059407,0.46735107,3603.8,3603.3,3.36662242]
[1733259059636,0.64993297,3603.7,3603.4,0.6149099]
[1733259059799,0.20771268,3603.6,3603.4,0.6149099]
[1733259059992,0.3759,3604.2,3603.4,0.6149099]
[1733259059993,0.4154207,3604.0,3603.4,0.6149099]
[1733259060187,0.98226056,3603.9,3603.4,0.6149099]
[1733259060397,0.46734462,3603.8,3603.4,0.6149099]
[1733259060634,0.46734462,3603.7,3603.1,2.78247655]
[1733259060787,0.20770877,3603.6,3603.1,2.78247655]
[1733259060987,0.4154221,3604.0,3603.1,2.78247655]
[1733259061303,0.98227239,3603.9,3603.1,2.78247655]
[1733259061634,0.79969049,3603.8,3603.2,2.7753]
[1733259061834,0.46735167,3603.7,3603.2,3.40900766]
[1733259062018,0.20771176,3603.6,3603.2,3.40900766]
[1733259062241,0.18257704,3603.6,3603.2,3.40900766]
[1733259062533,1.44250931,3604.1,3603.2,3.40900766]
[1733259062826,1.2149995,3604.0,3603.2,3.40900766]
[1733259063011,0.79961511,3603.9,3603.2,3.40900766]
[1733259063336,4.29922241,3604.2,3603.2,3.40900766]
[1733259063337,0.46730743,3603.8,3603.2,0.63370766]
[1733259063628,0.18257704,3603.8,3603.1,2.78247655]
[1733259063836,0.4153295,3604.1,3603.5,2.77506]
[1733259063986,0.46722265,3604.0,3603.6,2.77494]
[1733259064192,0.39023643,3603.9,3603.2,3.54176]
[1733259064392,0.1825819,3603.9,3603.4,2.77509]
[1733259064616,0.20763475,3603.8,3603.7,2.77491]
[1733259064942,0.1825819,3603.8,3603.7,3.54832]
[1733259065432,0.20761184,3604.3,3604.2,2.77449]
[1733259065642,1.52467241,3604.8,3604.4,2.77438]
[1733259065791,0.53967186,3604.7,3604.4,2.77438]
[1733259065996,0.46702358,3604.6,3604.4,2.77438]
[1733259066193,1.85703363,3605.0,3604.4,2.77438]
[1733259066391,0.79889827,3604.9,3604.4,2.77438]
[1733259066615,0.3759,3605.1,3604.7,2.78247655]
[1733259066616,0.46688677,3604.8,3604.7,2.78247655]
[1733259066816,0.79101533,3605.4,3604.7,2.78247655]
[1733259067017,0.7988037,3605.3,3604.7,2.78247655]
[1733259067248,0.46683333,3605.2,3604.7,2.78247655]
[1733259067433,0.33178025,3605.5,3604.8,0.8255]
[1733259067605,0.79834549,3605.4,3604.8,0.8255]
[1733259067811,0.41511533,3605.6,3604.8,0.8255]
[1733259067812,0.46656524,3605.3,3604.8,0.8255]
[1733259068014,0.33178025,3605.5,3604.4,0.355438]
[1733259068015,0.84246524,3605.2,3604.4,1.180938]
[1733259068344,0.46656524,3605.1,3604.4,0.355438]
[1733259068508,0.20736233,3605.0,3604.1,2.77456]
[1733259068699,3.1497,3605.2,3604.1,2.77456]
[1733259068700,0.20731225,3604.9,3604.1,2.77456]
[1733259068903,3.1497,3605.2,3604.1,2.77456]
[1733259068904,3.48153148,3605.2,3604.1,2.77456]
[1733259069094,0.79830711,3605.1,3604.1,2.77456]
[1733259069437,0.4664958,3605.0,3604.1,2.77456]
[1733259069635,0.20733147,3604.9,3604.2,0.63825365]
[1733259069844,0.25911118,3605.0,3604.2,0.63825365]
[1733259070040,0.46640567,3604.9,3604.2,0.63825365]
[1733259070346,0.25909845,3605.0,3604.2,0.63825365]
[1733259070541,0.20725144,3604.9,3604.2,0.63825365]
[1733259070839,2.77394,3605.0,3604.2,0.63825365]
[1733259071055,0.20725252,3604.9,3604.2,0.63825365]
[1733259071209,0.25904497,3605.1,3604.2,0.63825365]
[1733259071410,0.46626558,3605.0,3604.2,0.63825365]
[1733259071609,0.46626558,3604.9,3604.3,0.17411723]
[1733259071858,1.14877241,3605.3,3604.3,0.17411723]
[1733259071859,0.20722061,3604.8,3604.7,3.53787655]
[1733259072023,0.25904497,3605.2,3604.7,3.53787655]
[1733259072223,0.25898808,3605.4,3604.8,0.35378766]
[1733259072452,0.46612838,3605.3,3604.8,0.35378766]
[1733259072606,0.46612727,3605.6,3605.0,2.77392]
[1733259072807,0.2589249,3605.5,3605.2,2.77376]
[1733259073037,0.4158868,3605.8,3605.1,2.78247655]
[1733259073308,0.20712388,3605.7,3605.1,0.66655642]
[1733259073652,0.20702554,3605.7,3605.1,3.44036642]
[1733259073857,0.20702604,3605.7,3605.1,0.66655642]
[1733259074013,0.36398794,3605.8,3604.9,0.7554]
[1733259074212,3.13731794,3605.8,3604.9,0.7554]
[1733259074535,0.1569619,3605.8,3604.9,0.7554]
[1733259074747,3.13724387,3605.8,3604.9,0.7554]
[1733259074947,2.9303019,3605.8,3604.9,1.42196942]
[1733259075423,0.18397022,3605.7,3604.9,1.42196942]
[1733259075627,0.3759,3605.6,3604.9,1.42196942]
[1733259075930,0.3759,3605.6,3604.8,2.77403]
[1733259076128,0.18397022,3605.5,3604.8,2.77403]
[1733259076336,0.18397022,3605.5,3604.6,0.7554]
[1733259076337,0.18397022,3605.5,3604.6,3.52961]
[1733259076509,0.18397022,3605.5,3604.6,0.7554]
[1733259076713,0.55,3605.5,3604.6,0.7554]
[1733259077023,2.77371,3605.3,3604.3,3.68740537]
[1733259077225,0.18387789,3605.2,3604.3,3.68740537]
[1733259077952,0.18387789,3605.2,3604.3,2.92080537]
[1733259078158,0.3759,3605.1,3604.0,0.7666]
[1733259078313,0.3759,3605.1,3604.3,2.77444]
[1733259078512,0.18369809,3605.0,3604.4,2.77438]
[1733259079255,0.18369809,3605.0,3603.9,5.55719655]
[1733259079256,0.18369809,3605.0,3604.6,2.77422]
[1733259079552,0.84152817,3605.5,3604.7,3.818102]
[1733259079751,0.18369809,3604.9,3604.7,3.54068]
[1733259079967,0.3759,3605.5,3604.7,3.54068]
[1733259080159,0.20691555,3605.4,3604.7,0.7666]
[1733259080451,0.18370781,3605.4,3604.8,2.77406]
[1733259080660,0.20650441,3605.4,3604.8,3.128126]
[1733259081238,0.41357391,3605.4,3604.8,3.128126]
[1733259081568,0.20650441,3605.4,3604.8,0.354066]
[1733259081767,0.20707452,3605.3,3604.8,0.354066]
[1733259082330,0.18370781,3605.2,3604.8,0.354066]
[1733259082530,0.18370781,3605.2,3604.7,3.54074]
[1733259082531,0.0227966,3605.2,3604.7,3.54074]
[1733259082731,0.18370781,3605.1,3604.7,3.54074]
[1733259083377,0.18370781,3605.1,3604.2,3.5776]
[1733259083577,0.20650441,3605.1,3604.5,2.7743]
[1733259084951,0.20650441,3605.1,3604.3,2.77442]
[1733259085153,0.20650441,3605.1,3604.4,0.357752]
[1733259086152,0.20650441,3605.1,3604.4,3.132132]
[1733259086354,0.20650441,3605.1,3604.5,3.6239157]
[1733259086682,0.20650441,3605.1,3604.8,2.77401]
[1733259086683,0.0227966,3605.1,3604.8,2.77401]
[1733259086841,0.0227966,3605.1,3604.9,0.277401]
[1733259087040,0.0227966,3605.1,3605.0,0.7744]
[1733259087266,0.0227966,3605.1,3605.0,3.54832]
[1733259087672,0.0227966,3605.1,3605.0,0.7744]
[1733259088064,0.0227966,3605.1,3605.0,3.54832]
[1733259088261,0.0227966,3605.1,3605.0,3.903152]
[1733259088679,0.0227966,3605.1,3605.0,1.129232]
[1733259089641,0.0227966,3605.1,3605.0,0.354832]
[1733259089948,0.20685429,3605.1,3605.0,0.354832]
[1733259090382,0.20685429,3605.1,3604.7,3.54355]
[1733259091085,0.20685429,3605.1,3604.8,2.77407]
[1733259092285,0.0227966,3605.1,3604.7,0.7694]
[1733259092535,0.18405769,3605.0,3604.7,0.7694]
[1733259093340,0.18405769,3605.0,3604.6,2.77422]
[1733259093505,0.18405769,3605.0,3604.6,0.66845486]
[1733259093696,0.20685429,3605.0,3604.6,0.66845486]
[1733259093891,0.20685429,3605.0,3604.6,3.44265486]
[1733259094103,0.20685429,3605.0,3604.7,0.7883]
[1733259094306,0.0227966,3605.0,3604.7,0.7883]
[1733259094531,0.18405769,3604.9,3604.8,0.42309149]
[1733259094834,0.20685429,3604.9,3604.8,0.42309149]
[1733259095334,0.23064875,3604.9,3604.8,0.42309149]
[1733259095535,0.20685429,3604.9,3604.8,0.42309149]
[1733259095753,0.20685429,3604.9,3604.7,0.7883]
[1733259099144,0.20685429,3604.9,3604.6,3.44265486]
[1733259099299,0.0227966,3604.9,3604.6,3.44265486]
[1733259099495,0.18396536,3604.8,3604.6,3.44265486]
[1733259099812,0.0227966,3604.8,3604.7,0.42509549]
[1733259100336,0.23071055,3604.8,3604.4,0.8083]
[1733259100534,0.0227966,3604.8,3604.5,2.77427]
[1733259101405,0.18396536,3604.7,3604.3,2.77445]
[1733259101612,0.18396536,3604.7,3604.4,2.77431]
[1733259101827,0.0227966,3604.7,3604.4,2.77431]
[1733259102109,0.0227966,3604.7,3604.5,0.55567866]
[1733259102466,0.0227966,3604.7,3604.1,0.7821]
[1733259102606,0.0227966,3604.7,3604.1,3.55668]
[1733259102955,0.0227966,3604.7,3603.8,2.77478]
[1733259102956,0.4680251,3604.6,3603.8,2.77478]
[1733259103121,0.4680251,3604.5,3603.9,2.77471]
[1733259103323,0.2600179,3604.4,3603.9,2.77471]
[1733259103514,0.20803814,3604.3,3604.0,0.277471]
[1733259103708,0.0227966,3604.3,3604.0,0.277471]
[1733259104034,0.18370781,3604.2,3604.0,0.277471]
[1733259104347,0.0227966,3604.3,3604.0,0.277471]
[1733259104516,0.18349395,3604.1,3604.0,0.277471]
[1733259104716,0.0227966,3604.1,3604.0,3.052161]
[1733259105353,0.0227966,3604.1,3604.0,3.812861]
[1733259108758,0.0227966,3604.1,3604.0,6.812861]
[1733259111674,0.20788627,3605.0,3604.9,2.774]
[1733259111840,1.14877241,3605.3,3604.9,5.55647655]
[1733259112033,1.14877241,3605.3,3605.2,2.77377]
[1733259112374,1.61649976,3605.3,3605.2,2.77377]
[1733259112868,1.61649976,3605.3,3605.0,2.7739]
[1733259113069,1.14877241,3605.3,3605.0,3.41141765]
[1733259113373,1.14877241,3605.3,3605.1,2.77382]
[1733259115032,1.14877241,3605.3,3605.0,0.63751765]
[1733259115233,1.14877241,3605.3,3605.0,3.41141765]
[1733259116573,1.14877241,3605.3,3605.1,2.77383]
[1733259116876,1.14877241,3605.3,3605.1,0.70126242]
[1733259118773,0.3759,3605.2,3604.5,3.96079953]
[1733259119074,0.3759,3605.2,3604.5,3.60177655]
[1733259119230,1.14877241,3605.3,3605.1,2.77378]
[1733259119437,1.14877241,3605.3,3605.1,2.7738]
[1733259119667,0.18390705,3605.2,3605.1,2.7738]
[1733259119837,0.18390705,3605.2,3604.9,2.78247655]
[1733259120045,0.18390705,3605.2,3605.0,0.27824766]
[1733259120237,0.18390705,3605.2,3605.0,3.05210766]
[1733259120978,0.18390705,3605.2,3605.1,2.77384]
[1733259121333,0.3759,3605.6,3605.1,2.77384]
[1733259121580,0.39168079,3605.5,3605.1,2.77384]
[1733259121766,0.18397508,3605.5,3605.0,0.27824766]
[1733259121963,0.18397508,3605.5,3605.4,2.77361]
[1733259122161,0.3323018,3605.8,3605.3,2.78247655]
[1733259122531,0.39189744,3605.7,3605.4,2.77357]
[1733259122678,0.18423748,3605.7,3605.3,2.77369]
[1733259122839,0.18423748,3605.7,3605.4,2.77361]
[1733259123039,0.3759,3605.9,3605.4,2.77361]
[1733259123378,0.46720687,3605.8,3605.4,2.77361]
[1733259123578,0.39192871,3605.7,3605.4,2.77361]
[1733259123744,0.18428121,3605.7,3605.4,2.77361]
[1733259124074,0.3759,3605.9,3605.5,2.77351]
[1733259124278,0.18428121,3605.6,3605.5,3.16869661]
[1733259124491,0.75,3606.0,3605.6,2.77343]
[1733259124651,0.20755974,3605.9,3605.7,2.77334]
[1733259124982,0.75,3606.0,3605.7,2.77334]
[1733259125294,0.75,3606.0,3605.5,0.39518661]
[1733259125295,0.75,3606.0,3605.6,2.77344]
[1733259125436,0.75,3606.0,3605.6,3.13024193]
[1733259126143,0.75,3606.0,3605.6,0.35680193]
[1733259127107,0.75,3606.0,3605.5,0.39518661]
[1733259127404,0.5833506,3605.9,3605.0,5.77389]
[1733259127567,0.3759,3605.9,3605.0,5.77389]
[1733259127895,0.20745924,3605.8,3605.0,5.77389]
[1733259128202,0.3759,3605.9,3605.0,5.77389]
[1733259128203,0.3759,3605.9,3605.1,0.93368666]
[1733259128721,3.14913,3605.9,3605.1,0.93368666]
[1733259128855,0.20743994,3605.8,3605.0,3.0]
[1733259129057,0.3759,3605.9,3605.0,3.0]
[1733259129058,0.3759,3605.9,3605.0,5.77391]
[1733259129300,0.46673795,3605.8,3605.3,2.78247655]
[1733259129502,0.75,3606.0,3605.5,2.77347]
[1733259129674,0.2074172,3605.9,3605.4,0.7805]
[1733259129875,0.75,3606.0,3605.4,1.08208286]
[1733259130196,0.20741585,3605.9,3605.1,0.8079]
[1733259130398,0.75,3606.0,3605.1,0.8079]
[1733259130701,0.20741222,3605.9,3605.1,0.8079]
[1733259130870,0.75,3606.0,3605.2,2.7737]
[1733259131079,0.58331299,3605.9,3605.2,2.7737]
[1733259131365,0.3759,3605.9,3605.3,0.65816]
[1733259131988,0.3759,3605.9,3605.1,0.8079]
[1733259132154,0.3759,3605.9,3604.9,2.78247655]
[1733259132357,0.3759,3605.6,3604.8,2.77406]
[1733259132558,0.3759,3605.6,3604.6,2.77419]
[1733259132780,0.3759,3605.6,3604.5,6.34387655]
[1733259132781,2.77358,3605.5,3604.5,6.34387655]
[1733259132985,0.3759,3605.4,3604.5,7.27826421]
[1733259133390,0.33185956,3605.7,3604.1,2.77461]
[1733259133391,3.14973,3605.2,3604.2,0.7871]
[1733259133571,0.58336867,3605.1,3604.3,2.77439]
[1733259133800,0.58336867,3605.1,3604.2,3.56157]
[1733259134001,0.20746867,3605.0,3604.2,0.7871]
[1733259134239,0.3759,3604.9,3604.1,2.78247655]
[1733259134398,0.63538924,3604.9,3604.1,3.33819021]
[1733259134588,0.58347413,3604.8,3603.8,2.77483]
[1733259134933,0.58347413,3604.8,3603.7,2.78247655]
[1733259134934,0.3759,3604.6,3603.7,2.78247655]
[1733259135139,0.20757907,3604.5,3603.7,2.78247655]
[1733259135289,0.20764716,3604.4,3603.7,2.78247655]
[1733259135494,0.20764716,3604.4,3603.7,5.55738655]
[1733259135495,0.1841646,3604.4,3603.7,5.55738655]
[1733259135697,0.1841646,3604.4,3603.8,0.55573866]
[1733259135937,0.3759,3604.6,3603.8,0.55573866]
[1733259136240,0.46702985,3604.5,3603.8,0.55573866]
[1733259136539,0.20756882,3604.4,3603.6,2.77498]
[1733259136740,0.3759,3604.3,3603.6,2.77498]
[1733259137092,0.18376123,3604.2,3603.4,0.8085]
[1733259137488,0.25938595,3604.5,3603.4,3.58358]
[1733259137722,0.3759,3604.7,3603.8,2.77481]
[1733259137922,0.18336756,3604.4,3603.9,0.02774467]
[1733259138141,0.18336756,3604.4,3603.0,3.14756052]
[1733259138142,0.3759,3604.7,3604.1,2.78247655]
[1733259138643,0.3759,3604.7,3604.1,5.55706655]
[1733259138791,0.3759,3604.7,3604.2,2.77453]
[1733259139222,0.3759,3604.7,3604.3,2.77445]